bitfinex/quotes_BTCUSD_20241022
["timestamp","ask_amount","ask_price","bid_price","bid_amount"]
[1729615826589,0.01590116,66985.0,66984.0,0.0851]
[1729615826815,0.00674282,66985.0,66984.0,0.0851]
[1729615827058,0.01590116,66985.0,66984.0,0.0801]
[1729615827279,0.01174282,66985.0,66984.0,0.0801]
[1729615827520,0.02690116,66985.0,66984.0,0.0811]
[1729615828299,0.02680834,66985.0,66984.0,0.0811]
[1729615828540,0.02680834,66985.0,66984.0,0.230389]
[1729615828767,0.01765,66985.0,66984.0,0.230389]
[1729615829514,0.01265,66985.0,66984.0,0.45943908]
[1729615829744,0.01265,66985.0,66984.0,0.45645346]
[1729615830478,0.00165,66985.0,66984.0,0.45545346]
[1729615830704,0.00165,66985.0,66984.0,0.45745346]
[1729615830960,0.00165,66985.0,66984.0,0.46045346]
[1729615831434,0.00165,66985.0,66984.0,0.45745346]
[1729615831660,0.00165,66985.0,66984.0,0.46045346]
[1729615831901,0.00165,66985.0,66984.0,0.45845346]
[1729615832184,0.00165,66985.0,66984.0,0.331289]
[1729615832422,0.00165,66985.0,66984.0,0.333289]
[1729615832950,0.00165,66985.0,66984.0,0.335289]
[1729615833178,0.00165,66985.0,66984.0,0.328289]
[1729615833413,0.00165,66985.0,66984.0,0.331289]
[1729615833650,0.00174282,66985.0,66984.0,0.0851]
[1729615833886,0.00674282,66985.0,66984.0,0.0801]
[1729615834124,0.01587121,66985.0,66984.0,0.0821]
[1729615834352,0.00674282,66985.0,66984.0,0.0821]
[1729615834809,0.01587121,66985.0,66984.0,0.0801]
[1729615835247,0.01587121,66985.0,66984.0,0.0821]
[1729615835509,0.02087121,66985.0,66984.0,0.0821]
[1729615835739,0.02087121,66985.0,66984.0,0.0801]
[1729615836006,0.02787121,66985.0,66984.0,0.0811]
[1729615838301,0.01874282,66985.0,66984.0,0.0811]
[1729615838533,0.01374282,66985.0,66984.0,0.0811]
[1729615838756,0.01874282,66985.0,66984.0,0.0811]
[1729615838986,0.0277733,66985.0,66984.0,0.0811]
[1729615839452,0.01865,66985.0,66984.0,0.0811]
[1729615840355,0.01865,66985.0,66984.0,0.15857038]
[1729615840575,0.01865,66985.0,66984.0,0.230389]
[1729615841050,0.01865,66985.0,66984.0,0.0811]
[1729615841259,0.01365,66985.0,66984.0,0.0811]
[1729615841703,0.01465,66985.0,66984.0,0.0811]
[1729615842372,0.00765,66985.0,66984.0,0.0801]
[1729615842816,0.00965,66985.0,66984.0,0.0801]
[1729615843035,0.00165,66985.0,66984.0,0.0801]
[1729615843310,0.00565,66985.0,66984.0,0.0801]
[1729615843748,0.01065,66985.0,66984.0,0.323189]
[1729615843968,0.01065,66985.0,66984.0,0.1739]
[1729615844649,0.00565,66985.0,66984.0,0.4134152]
[1729615844884,0.00565,66985.0,66984.0,0.41042959]
[1729615845597,0.00265,66985.0,66984.0,0.41042959]
[1729615845853,0.00165,66985.0,66984.0,0.41042959]
[1729615846311,0.00165,66985.0,66984.0,0.41142959]
[1729615846536,0.00165,66985.0,66984.0,0.1749]
[1729615847247,0.01077332,66985.0,66984.0,0.1749]
[1729615847501,0.00165,66985.0,66984.0,0.1749]
[1729615847734,0.010762,66985.0,66984.0,0.1749]
[1729615847969,0.00165,66985.0,66984.0,0.1749]
[1729615848196,0.01076823,66985.0,66984.0,0.1749]
[1729615848473,0.00165,66985.0,66984.0,0.1749]
[1729615848701,0.01076823,66985.0,66984.0,0.1749]
[1729615848922,0.00165,66985.0,66984.0,0.1749]
[1729615849137,0.00165,66985.0,66984.0,0.22968476]
[1729615849138,0.01076823,66985.0,66984.0,0.22968476]
[1729615849359,0.00165,66985.0,66984.0,0.37897376]
[1729615849773,0.00165,66985.0,66984.0,0.22968476]
[1729615850481,0.01555556,66985.0,66984.0,0.22968476]
[1729615852579,0.00165,66985.0,66984.0,0.22968476]
[1729615853030,0.00165,66985.0,66984.0,0.1749]
[1729615853520,0.01555544,66985.0,66984.0,0.0811]
[1729615855166,0.02055544,66985.0,66984.0,0.0811]
[1729615855401,0.02055544,66985.0,66984.0,0.001]
[1729615855402,0.31889441,66985.0,66984.0,0.001]
[1729615855631,0.44412216,66985.0,66984.0,0.001]
[1729615855864,0.45299325,66985.0,66984.0,0.001]
[1729615856103,0.1493,66979.0,66978.0,0.00223947]
[1729615856555,0.0300233,66979.0,66978.0,0.00223947]
[1729615856775,0.03889439,66979.0,66978.0,0.00223947]
[1729615857669,0.18819439,66979.0,66978.0,0.00223947]
[1729615858120,0.03889439,66979.0,66978.0,0.00223947]
[1729615858355,0.03889439,66979.0,66974.0,0.000825]
[1729615858827,0.0250233,66978.0,66974.0,0.000825]
[1729615858829,0.0250233,66978.0,66975.0,0.2236486]
[1729615859083,0.0300233,66977.0,66976.0,0.1711]
[1729615859301,0.0300233,66977.0,66976.0,0.0788]
[1729615859531,0.01890544,66977.0,66976.0,0.0788]
[1729615859748,0.03881475,66977.0,66976.0,0.0788]
[1729615860001,0.02769689,66977.0,66976.0,0.0788]
[1729615860248,0.01890544,66977.0,66976.0,0.0788]
[1729615860463,0.0300233,66977.0,66976.0,0.0788]
[1729615861618,0.04182355,66977.0,66976.0,0.0788]
[1729615861851,0.03079851,66977.0,66976.0,0.0788]
[1729615862080,0.005,66975.0,66974.0,0.000825]
[1729615862341,0.01890544,66975.0,66974.0,0.000825]
[1729615862580,0.16821444,66975.0,66974.0,0.000825]
[1729615862859,0.17701564,66975.0,66974.0,0.000825]
[1729615863098,0.03881856,66975.0,66974.0,0.000825]
[1729615864323,0.02770664,66975.0,66974.0,0.000825]
[1729615864810,0.02970664,66975.0,66974.0,0.000825]
[1729615865522,0.02770664,66975.0,66974.0,0.000825]
[1729615865737,0.03070664,66975.0,66974.0,0.000825]
[1729615866227,0.02770664,66975.0,66974.0,0.000825]
[1729615866477,0.03170664,66975.0,66974.0,0.000825]
[1729615867403,0.18601564,66975.0,66974.0,0.000825]
[1729615867651,0.03679946,66975.0,66974.0,0.000825]
[1729615867890,0.51753569,66975.0,66974.0,0.000825]
[1729615868332,0.72768861,66975.0,66974.0,0.000825]
[1729615868558,0.58411822,66975.0,66974.0,0.000825]
[1729615869289,0.56189043,66975.0,66974.0,0.000825]
[1729615869523,0.09226612,66975.0,66974.0,0.000825]
[1729615869764,0.03676246,66975.0,66974.0,0.000825]
[1729615870476,0.18607146,66975.0,66974.0,0.000825]
[1729615872191,0.19716166,66975.0,66974.0,0.000825]
[1729615872693,0.34612081,66975.0,66974.0,0.000825]
[1729615872956,0.51887907,66975.0,66974.0,0.000825]
[1729615873184,1.01710361,66975.0,66974.0,0.000825]
[1729615874178,0.76457853,66975.0,66974.0,0.000825]
[1729615874418,0.82610269,66975.0,66974.0,0.000825]
[1729615874649,0.82610269,66975.0,66974.0,0.001825]
[1729615874650,0.78989514,66975.0,66974.0,0.001825]
[1729615874887,0.78889514,66975.0,66974.0,0.001825]
[1729615875119,0.80289514,66975.0,66974.0,0.002825]
[1729615875357,0.63961272,66975.0,66974.0,0.001825]
[1729615875585,0.5104444,66975.0,66974.0,0.001825]
[1729615875811,0.5234444,66975.0,66974.0,0.002825]
[1729615876262,0.50958405,66975.0,66974.0,0.002825]
[1729615876481,0.52344066,66975.0,66974.0,0.002825]
[1729615876703,0.51344066,66975.0,66974.0,0.002825]
[1729615876930,0.46910898,66975.0,66974.0,0.002825]
[1729615877155,0.36410898,66975.0,66974.0,0.002825]
[1729615877595,0.35301878,66975.0,66974.0,0.002825]
[1729615878780,0.33916217,66975.0,66974.0,0.002825]
[1729615881460,0.0408012,66975.0,66974.0,0.10790988]
[1729615881672,0.027,66975.0,66974.0,0.082925]
[1729615881894,0.027,66975.0,66974.0,0.232236]
[1729615882381,0.014,66975.0,66974.0,0.325736]
[1729615882596,0.018,66975.0,66974.0,0.325736]
[1729615882857,0.018,66975.0,66974.0,0.45753648]
[1729615883117,0.00165,66977.0,66975.0,0.00490718]
[1729615883372,0.00165,66977.0,66976.0,0.322907]
[1729615883373,0.00665,66977.0,66976.0,0.322907]
[1729615883640,0.00665,66977.0,66976.0,0.1736]
[1729615883880,0.155954,66977.0,66976.0,0.0785]
[1729615884095,0.155954,66977.0,66974.0,0.000825]
[1729615884096,0.14940182,66975.0,66974.0,0.002825]
[1729615884324,0.47471713,66975.0,66974.0,0.002825]
[1729615884554,0.31166446,66975.0,66974.0,0.000825]
[1729615884995,0.31066446,66975.0,66974.0,0.000825]
[1729615885451,0.01030349,66975.0,66974.0,0.000825]
[1729615885741,0.01039631,66975.0,66974.0,0.000825]
[1729615885972,0.01239631,66975.0,66974.0,0.000825]
[1729615886223,0.01630349,66975.0,66974.0,0.227836]
[1729615886467,0.02139631,66975.0,66974.0,0.078525]
[1729615886696,0.32366446,66975.0,66974.0,0.001825]
[1729615886923,0.31966446,66975.0,66974.0,0.001825]
[1729615887358,0.31966446,66975.0,66974.0,0.000825]
[1729615887359,0.01539631,66975.0,66974.0,0.000825]
[1729615887582,0.00739631,66975.0,66974.0,0.000825]
[1729615887805,0.02239631,66975.0,66974.0,0.151136]
[1729615888031,0.02239631,66975.0,66974.0,0.172625]
[1729615888316,0.01404631,66975.0,66974.0,0.171625]
[1729615888540,0.01165,66975.0,66974.0,0.2635478]
[1729615888770,0.01174282,66975.0,66974.0,0.2635478]
[1729615888989,0.00674282,66975.0,66974.0,0.171625]
[1729615889487,0.00830804,66975.0,66974.0,0.171625]
[1729615889721,0.00874282,66975.0,66974.0,0.171625]
[1729615889936,0.01474282,66975.0,66974.0,0.172625]
[1729615890153,0.01531381,66975.0,66974.0,0.171625]
[1729615890633,0.01831381,66975.0,66974.0,0.171625]
[1729615891166,0.01131381,66975.0,66974.0,0.171625]
[1729615891608,0.01431381,66975.0,66974.0,0.171625]
[1729615892051,0.01131381,66975.0,66974.0,0.171625]
[1729615892310,0.01331381,66975.0,66974.0,0.171625]
[1729615892520,0.00374282,66975.0,66974.0,0.320936]
[1729615892753,0.00574282,66975.0,66974.0,0.320936]
[1729615892982,0.00374282,66975.0,66974.0,0.171625]
[1729615893216,0.0102907,66975.0,66974.0,0.320936]
[1729615893656,0.01019788,66975.0,66974.0,0.320936]
[1729615893872,0.00365,66975.0,66974.0,0.320936]
[1729615894080,0.00265,66975.0,66974.0,0.320936]
[1729615895068,0.00265,66975.0,66974.0,0.323936]
[1729615895315,0.00265,66975.0,66974.0,0.50519934]
[1729615895547,0.00165,66975.0,66974.0,0.46604713]
[1729615895770,0.00165,66975.0,66974.0,0.47295431]
[1729615896033,0.00165,66975.0,66974.0,0.47595431]
[1729615896266,0.00165,66975.0,66974.0,0.46904713]
[1729615896503,0.00165,66975.0,66974.0,0.47095431]
[1729615896736,0.00165,66975.0,66974.0,0.47595431]
[1729615896964,0.00165,66975.0,66974.0,0.47395431]
[1729615897245,0.00165,66975.0,66974.0,0.47295431]
[1729615897489,0.00165,66975.0,66974.0,0.46595431]
[1729615897737,0.00165,66975.0,66974.0,0.47395431]
[1729615897952,0.00165,66975.0,66974.0,0.47095431]
[1729615898400,0.00165,66975.0,66974.0,0.47395431]
[1729615898851,0.00165,66975.0,66974.0,0.47595431]
[1729615899056,0.00165,66975.0,66974.0,0.47395431]
[1729615899484,0.00165,66975.0,66974.0,0.47595431]
[1729615899714,0.00165,66975.0,66974.0,0.47395431]
[1729615900155,0.00165,66975.0,66974.0,0.47095431]
[1729615900375,0.00165,66975.0,66974.0,0.78826962]
[1729615900600,0.00165,66975.0,66974.0,0.79126962]
[1729615901063,0.00165,66975.0,66974.0,0.91926962]
[1729615901301,0.00165,66975.0,66974.0,0.92126962]
[1729615901737,0.00165,66975.0,66974.0,0.91826962]
[1729615901952,0.00165,66975.0,66974.0,0.92126962]
[1729615902398,0.00165,66975.0,66974.0,0.91726962]
[1729615902829,0.00165,66975.0,66974.0,0.91926962]
[1729615904153,0.00165,66975.0,66974.0,0.92126962]
[1729615904584,0.00165,66985.0,66984.0,0.15419618]
[1729615904801,0.00165,66985.0,66984.0,0.70259907]
[1729615905047,0.00165,66985.0,66984.0,0.53063992]
[1729615905280,0.00165,66985.0,66984.0,0.35928376]
[1729615905731,0.00165,66985.0,66984.0,0.35428376]
[1729615905977,0.00165,66985.0,66984.0,0.70459907]
[1729615906234,0.00165,66985.0,66984.0,0.70259907]
[1729615906469,0.00165,66985.0,66984.0,0.70459907]
[1729615907102,0.00165,66985.0,66984.0,0.70259907]
[1729615907794,0.00165,66985.0,66984.0,0.70559907]
[1729615908015,0.00165,66985.0,66984.0,0.70759907]
[1729615908472,0.00165,66985.0,66984.0,1.03324767]
[1729615908743,0.00165,66993.0,66992.0,0.63063434]
[1729615908963,0.00165,66993.0,66992.0,0.77759349]
[1729615910330,0.00165,66993.0,66992.0,0.77959349]
[1729615911039,0.00165,66993.0,66992.0,0.78259349]
[1729615911487,0.00165,66993.0,66992.0,0.78059349]
[1729615911718,0.00165,66993.0,66992.0,0.80768107]
[1729615911949,0.00165,66993.0,66992.0,0.80568107]
[1729615912648,0.00165,66993.0,66992.0,0.80768107]
[1729615913357,0.00165,66993.0,66992.0,0.80568107]
[1729615913855,0.00165,66993.0,66992.0,0.80768107]
[1729615914333,0.00165,66993.0,66992.0,0.80568107]
[1729615916685,0.00165,66993.0,66992.0,0.80768107]
[1729615917150,0.00165,66993.0,66992.0,0.80568107]
[1729615917757,0.00165,66993.0,66992.0,0.80768107]
[1729615919182,0.00165,66993.0,66992.0,0.97903723]
[1729615919917,0.00165,66993.0,66992.0,0.80768107]
[1729615920582,0.75165,66993.0,66992.0,0.80768107]
[1729615920806,0.75165,66993.0,66992.0,0.80991941]
[1729615921025,0.75165,66993.0,66992.0,0.98127557]
[1729615921272,0.00165,66998.0,66997.0,0.01190718]
[1729615921510,0.00165,66998.0,66997.0,0.95212267]
[1729615921748,0.00165,66998.0,66997.0,0.94913865]
[1729615921978,0.00165,66998.0,66997.0,0.79887007]
[1729615923114,0.00165,66998.0,66997.0,0.80087007]
[1729615923561,0.00165,66998.0,66997.0,0.79887007]
[1729615924004,0.00165,66998.0,66997.0,0.80087007]
[1729615924455,0.00165,66998.0,66997.0,0.80287007]
[1729615924682,0.00165,66998.0,66997.0,0.15816718]
[1729615924907,0.00165,66998.0,66997.0,0.15126]
[1729615925349,0.00165,66998.0,66997.0,0.15624488]
[1729615925565,0.00165,66998.0,66997.0,0.15424488]
[1729615925790,0.00165,66998.0,66997.0,0.15224488]
[1729615926011,0.00165,66998.0,66997.0,0.26024422]
[1729615926700,0.00165,66998.0,66997.0,0.25824422]
[1729615926931,0.00165,66998.0,66997.0,0.25725934]
[1729615927386,0.00165,66998.0,66997.0,0.15126]
[1729615927632,0.00165,66998.0,66997.0,0.15224489]
[1729615927862,0.00165,66998.0,66997.0,0.14926]
[1729615928072,0.00165,66998.0,66997.0,0.15126]
[1729615928522,0.00165,66998.0,66997.0,0.14926]
[1729615928741,0.00165,66998.0,66997.0,0.15126]
[1729615928962,0.00665,66998.0,66997.0,0.15126]
[1729615929213,0.00665,66998.0,66997.0,0.15326]
[1729615929404,0.00665,66998.0,66997.0,0.004]
[1729615929624,0.00665,66998.0,66997.0,0.14926]
[1729615929842,0.00665,66998.0,66997.0,0.15326]
[1729615930515,0.00665,66998.0,66997.0,0.15126]
[1729615930764,0.00665,66998.0,66997.0,0.15226]
[1729615930956,0.00665,66998.0,66997.0,0.003]
[1729615931192,0.00665,66998.0,66997.0,0.15026]
[1729615931839,0.00865,66998.0,66997.0,0.15026]
[1729615932273,0.00865,66998.0,66997.0,0.14926]
[1729615932707,0.00865,66998.0,66997.0,0.001]
[1729615933058,0.00365,66998.0,66997.0,0.001]
[1729615933274,0.00865,66998.0,66997.0,0.001]
[1729615933473,0.00665,66998.0,66997.0,0.001]
[1729615933681,0.00665,66998.0,66997.0,0.15026]
[1729615933881,0.00665,66998.0,66997.0,0.001]
[1729615934506,0.00165,66998.0,66997.0,0.001]
[1729615934706,0.00665,66998.0,66997.0,0.09932219]
[1729615935904,0.00674282,66998.0,66997.0,0.002]
[1729615936125,0.16709121,66998.0,66997.0,0.002]
[1729615936980,0.16709121,66998.0,66997.0,0.001]
[1729615937810,0.16709121,66998.0,66993.0,0.00165]
[1729615938018,0.17135616,66996.0,66993.0,0.00165]
[1729615938222,0.005,66994.0,66993.0,0.00165]
[1729615939314,0.005,66994.0,66993.0,0.00265]
[1729615939729,0.005,66994.0,66993.0,0.00165]
[1729615940560,0.008,66994.0,66993.0,0.00165]
[1729615941451,0.012,66994.0,66993.0,0.00165]
[1729615941883,0.005,66994.0,66993.0,0.00165]
[1729615942126,0.009,66994.0,66993.0,0.00165]
[1729615942774,0.005,66994.0,66993.0,0.55334149]
[1729615942986,0.009,66994.0,66993.0,0.37807815]
[1729615943200,0.009,66994.0,66993.0,0.151919]
[1729615943636,0.005,66994.0,66993.0,0.150919]
[1729615943850,0.005,66996.0,66993.0,0.302185]
[1729615944059,9.282e-05,66995.0,66993.0,0.00365]
[1729615944280,0.012,66994.0,66993.0,0.00465]
[1729615944491,0.005,66994.0,66993.0,0.00365]
[1729615944938,0.005,66994.0,66993.0,0.00565]
[1729615945157,0.005,66994.0,66993.0,0.00165]
[1729615945373,0.005,66994.0,66993.0,0.150919]
[1729615945589,0.005,66994.0,66993.0,0.00365]
[1729615945807,0.005,66994.0,66993.0,0.152919]
[1729615947127,0.005,66994.0,66993.0,0.150919]
[1729615949182,0.07162701,67016.0,67013.0,0.00490718]
[1729615949392,0.005,67016.0,67015.0,0.14922]
[1729615950747,0.005,67016.0,67015.0,0.15122]
[1729615952348,0.005,67016.0,67015.0,0.15322]
[1729615952991,0.005,67016.0,67015.0,0.451659]
[1729615953893,0.00665,67018.0,67016.0,0.149218]
[1729615954107,0.00665,67017.0,67016.0,0.149218]
[1729615955274,0.00665,67017.0,67016.0,0.151218]
[1729615955724,0.00665,67017.0,67016.0,0.004]
[1729615957534,0.155865,67017.0,67016.0,0.004]
[1729615958792,0.00665,67017.0,67016.0,0.004]
[1729615964847,0.00665,67017.0,67016.0,0.153218]
[1729615965059,0.00165,67017.0,67016.0,0.153218]
[1729615965484,0.00665,67017.0,67016.0,0.153218]
[1729615965687,0.00665,67017.0,67016.0,0.004]
[1729615966818,0.155865,67017.0,67016.0,0.004]
[1729615967057,0.00665,67017.0,67016.0,0.004]
[1729615974990,0.00665,67017.0,67016.0,0.002]
[1729615975206,0.005,67015.0,67014.0,0.00223819]
[1729615976950,0.005,67015.0,67014.0,0.15146019]
[1729615977178,0.005,67015.0,67014.0,0.1002296]
[1729615977617,0.005,67015.0,67014.0,0.1022296]
[1729615977842,0.005,67015.0,67014.0,0.00423819]
[1729615978537,0.005,67015.0,67014.0,0.00623819]
[1729615978997,0.00165,67017.0,67014.0,0.00623819]
[1729615979197,0.005,67016.0,67014.0,0.00623819]
[1729615979713,0.005,67016.0,67014.0,0.15545919]
[1729615979988,0.005,67015.0,67014.0,0.00423819]
[1729615980235,0.005,67015.0,67014.0,0.00623819]
[1729615980466,0.005,67015.0,67014.0,0.00423819]
[1729615980660,0.00165,67017.0,67014.0,0.15145819]
[1729615980661,0.005,67016.0,67014.0,0.15145819]
[1729615980932,0.005,67016.0,67015.0,0.14922]
[1729615981166,0.005,67016.0,67015.0,0.00298408]
[1729615981674,0.14922,67015.0,67014.0,0.002]
[1729615981921,0.303442,67015.0,67014.0,0.002]
[1729615982157,0.46659148,67015.0,67014.0,0.002]
[1729615982390,0.149223,67014.0,67006.0,0.30071651]
[1729615982626,0.149224,67013.0,67010.0,0.2236486]
[1729615982872,0.01892948,67014.0,67008.0,0.149235]
[1729615982873,0.16815148,67014.0,67008.0,0.149235]
[1729615983121,0.01892948,67014.0,67009.0,0.149233]
[1729615983364,0.005,67014.0,67007.0,0.298476]
[1729615983609,0.005,67014.0,67009.0,0.149232]
[1729615983856,0.005,67014.0,67006.0,0.00223851]
[1729615984097,0.154222,67014.0,67010.0,0.002]
[1729615984349,0.154222,67014.0,67008.0,0.149235]
[1729615985065,0.005,67014.0,67007.0,0.002]
[1729615985300,0.01392948,67015.0,67007.0,0.002]
[1729615985301,0.32059016,67009.0,67007.0,0.002]
[1729615985565,0.17135616,67009.0,67007.0,0.002]
[1729615985803,0.149232,67010.0,67007.0,0.002]
[1729615986034,0.154229,67011.0,67007.0,0.002]
[1729615986539,0.154229,67011.0,67006.0,0.00223851]
[1729615986540,0.005,67011.0,67006.0,0.00223851]
[1729615986769,0.17635616,67008.0,67006.0,0.00223851]
[1729615987235,0.149238,67007.0,67006.0,0.00223851]
[1729615987737,0.15433082,67007.0,67006.0,0.00223851]
[1729615987968,0.14934382,67001.0,67000.0,0.001648]
[1729615988231,0.32569998,67001.0,67000.0,0.001648]
[1729615988469,0.65005913,67001.0,67000.0,0.001648]
[1729615989450,0.32569998,67001.0,67000.0,0.001648]
[1729615990436,0.33269998,67001.0,67000.0,0.004648]
[1729615990682,0.32569998,67001.0,67000.0,0.003648]
[1729615990924,0.32569998,67001.0,67000.0,0.001648]
[1729615991165,0.33169998,67001.0,67000.0,0.001648]
[1729615995287,0.48065913,67001.0,67000.0,0.001648]
[1729615997013,0.49564855,67001.0,67000.0,0.001648]
[1729615998409,0.48065913,67001.0,67000.0,0.001648]
[1729616004404,0.41888925,67001.0,67000.0,0.001648]
[1729616010511,0.51488925,67001.0,67000.0,0.001648]
[1729616010739,0.56116812,67001.0,67000.0,0.001648]
[1729616011650,0.40530297,67001.0,67000.0,0.001648]
[1729616011903,0.59638925,67001.0,67000.0,0.001648]
[1729616013315,0.51988925,67001.0,67000.0,0.001648]
[1729616014909,0.30930297,67001.0,67000.0,0.001648]
[1729616015134,0.41888925,67001.0,67000.0,0.001648]
[1729616016503,0.30930297,67001.0,67000.0,0.001648]
[1729616016737,0.41888925,67001.0,67000.0,0.001648]
[1729616017199,0.31095297,67001.0,67000.0,0.001648]
[1729616018621,0.35731197,67001.0,67000.0,0.001648]
[1729616018857,0.35731197,67001.0,66993.0,0.00165]
[1729616018858,0.37353238,66994.0,66993.0,0.00165]
[1729616019103,0.56885053,66994.0,66993.0,0.00165]
[1729616020222,0.57885053,66994.0,66993.0,0.00265]
[1729616020912,0.58998983,66994.0,66993.0,0.00265]
[1729616021588,0.59698983,66994.0,66993.0,0.00365]
[1729616022281,0.59898983,66994.0,66993.0,0.00365]
[1729616022497,0.60198983,66994.0,66993.0,0.00365]
[1729616022954,0.59085053,66994.0,66993.0,0.00365]
[1729616023174,0.60198689,66994.0,66993.0,0.00365]
[1729616023380,0.60176111,66994.0,66993.0,0.00365]
[1729616023601,1.03872026,66994.0,66993.0,0.00365]
[1729616023819,0.88976111,66994.0,66993.0,0.00365]
[1729616024280,0.93416883,66994.0,66993.0,0.00365]
[1729616025396,0.88776111,66994.0,66993.0,0.00365]
[1729616025737,0.9322061,66994.0,66993.0,0.00365]
[1729616026037,0.93910873,66994.0,66993.0,0.00365]
[1729616026498,0.93910508,66994.0,66993.0,0.00365]
[1729616027647,0.89466009,66994.0,66993.0,0.00365]
[1729616028776,0.89666009,66994.0,66993.0,0.00365]
[1729616029569,0.96327524,66994.0,66993.0,0.00365]
[1729616029782,1.29854963,66994.0,66993.0,0.00365]
[1729616029985,1.20972943,66994.0,66993.0,0.00365]
[1729616030159,1.32075083,66994.0,66993.0,0.00365]
[1729616030360,1.20772558,66994.0,66993.0,0.00365]
[1729616030794,1.21031692,66994.0,66993.0,0.00365]
[1729616031004,1.19918806,66994.0,66993.0,0.00365]
[1729616031892,1.21231082,66994.0,66993.0,0.00365]
[1729616032513,1.21234461,66994.0,66993.0,0.00365]
[1729616032725,1.21034461,66994.0,66993.0,0.00365]
[1729616032962,1.19922185,66994.0,66993.0,0.00365]
[1729616033475,1.0502627,66994.0,66993.0,0.00365]
[1729616034123,1.04767136,66994.0,66993.0,0.00365]
[1729616037224,1.04767811,66994.0,66993.0,0.00365]
[1729616039906,1.04932811,66994.0,66993.0,0.00365]
[1729616040978,1.04933634,66994.0,66993.0,0.00365]
[1729616041203,1.19829549,66994.0,66993.0,0.00365]
[1729616041420,1.22166533,66994.0,66993.0,0.00365]
[1729616041862,1.07270618,66994.0,66993.0,0.00365]
[1729616042663,0.99560618,66994.0,66993.0,0.00365]
[1729616043977,0.89670618,66994.0,66993.0,0.00365]
[1729616044206,0.73254722,66994.0,66993.0,0.00365]
[1729616044429,0.73454722,66994.0,66993.0,0.00365]
[1729616044689,0.89869439,66994.0,66993.0,0.00365]
[1729616045993,1.04193105,66994.0,66993.0,0.00365]
[1729616046980,1.03993105,66994.0,66993.0,0.00365]
[1729616047181,0.89669439,66994.0,66993.0,0.00365]
[1729616047399,0.56252183,66994.0,66993.0,0.00365]
[1729616047595,0.67210811,66994.0,66993.0,0.00365]
[1729616047974,0.64873827,66994.0,66993.0,0.00365]
[1729616048188,0.49850772,66994.0,66993.0,0.00365]
[1729616048407,0.23305966,66994.0,66993.0,0.00365]
[1729616048687,0.23305966,66994.0,66993.0,0.08015]
[1729616048688,0.29628694,66994.0,66993.0,0.08015]
[1729616050133,0.34265509,66994.0,66993.0,0.08015]
[1729616050341,0.29628694,66994.0,66993.0,0.08015]
[1729616050550,0.34265593,66994.0,66993.0,0.08015]
[1729616051827,0.34267859,66994.0,66993.0,0.08015]
[1729616055834,0.34267982,66994.0,66993.0,0.08015]
[1729616056035,0.3426798,66994.0,66993.0,0.08015]
[1729616056280,0.33781276,66994.0,66993.0,0.08015]
[1729616056486,0.3426798,66994.0,66993.0,0.08015]
[1729616056898,0.03259049,66994.0,66993.0,0.188745]
[1729616057126,0.02351704,66994.0,66993.0,0.338014]
[1729616057749,0.01165,66994.0,66993.0,0.319519]
[1729616057957,0.01165,66994.0,66993.0,0.323519]
[1729616057958,0.00165,66994.0,66993.0,0.323519]
[1729616058179,0.00165,66994.0,66993.0,0.325519]
[1729616058817,0.00165,66994.0,66993.0,0.323519]
[1729616059034,0.11123628,66994.0,66993.0,0.320519]
[1729616059250,0.00165,66994.0,66993.0,0.32275788]
[1729616059678,0.00165,66994.0,66993.0,0.32075788]
[1729616059883,0.00165,66994.0,66993.0,0.32375788]
[1729616060094,0.00165,66994.0,66993.0,0.41885696]
[1729616060302,0.00165,66994.0,66993.0,0.32575788]
[1729616060528,0.00165,66994.0,66993.0,0.32075788]
[1729616060740,0.00165,66994.0,66993.0,0.17348888]
[1729616060964,0.00165,66994.0,66993.0,0.32275788]
[1729616061200,0.00165,66994.0,66993.0,0.32475788]
[1729616061614,0.00165,66994.0,66993.0,0.32275788]
[1729616061825,0.00165,66994.0,66993.0,0.32475788]
[1729616062070,0.00165,66994.0,66993.0,0.32275788]
[1729616062284,0.00165,66994.0,66993.0,0.41575696]
[1729616062500,0.00165,66994.0,66993.0,0.41875696]
[1729616078416,0.00165,66994.0,66993.0,0.57271611]
[1729616078632,0.00165,66994.0,66993.0,0.60084907]
[1729616079028,0.00165,66994.0,66993.0,0.70084907]
[1729616079273,0.00165,66994.0,66993.0,0.69884907]
[1729616079735,0.00165,66994.0,66993.0,0.69784907]
[1729616079965,0.00165,66994.0,66993.0,0.69884907]
[1729616080417,0.00165,66994.0,66993.0,0.69784907]
[1729616080865,0.00165,66994.0,66993.0,0.70084907]
[1729616083012,0.00165,66994.0,66993.0,0.69584907]
[1729616083468,0.00165,66994.0,66993.0,0.69984907]
[1729616083712,0.00165,66994.0,66993.0,0.69784907]
[1729616084175,0.00165,66994.0,66993.0,0.69984907]
[1729616089819,0.00165,66994.0,66993.0,0.70184907]
[1729616090035,0.00165,66994.0,66993.0,0.69984907]
[1729616099492,0.00165,66994.0,66993.0,0.80943535]
[1729616099724,0.00165,66994.0,66993.0,0.51574999]
[1729616099941,0.00165,66994.0,66993.0,0.49274999]
[1729616100389,0.00165,66994.0,66993.0,0.48874999]
[1729616100607,0.00165,66994.0,66993.0,0.49074999]
[1729616100822,0.00165,66994.0,66993.0,0.49274999]
[1729616101003,0.00165,66994.0,66993.0,0.51574999]
[1729616102007,0.00165,66994.0,66993.0,0.51374999]
[1729616102607,0.00165,66994.0,66993.0,0.51474999]
[1729616102833,0.00165,66994.0,66993.0,0.62233627]
[1729616103053,0.00165,66994.0,66993.0,0.51374999]
[1729616103272,0.00165,66994.0,66993.0,0.72373627]
[1729616104825,0.00165,66994.0,66993.0,0.72573627]
[1729616105699,0.00165,66994.0,66993.0,0.72373627]
[1729616106379,0.00165,66994.0,66993.0,0.61414999]
[1729616106609,0.00165,66994.0,66993.0,0.51474999]
[1729616106845,0.00165,66994.0,66993.0,0.25629084]